fUST/lending_fUST_20250604
["ID","MTS","AMOUNT","RATE_DAILY","PERIOD"]
[364047532,1748976639663,-247.92707495,0.00017534,2]
[364047534,1748976639674,-440.0,0.00017534,2]
[364047536,1748976639684,-440.0,0.00017534,2]
[364047537,1748976639694,-440.0,0.00017534,2]
[364047538,1748976639704,-354.62577775,0.00017534,2]
[364047539,1748976639714,-440.0,0.00017534,2]
[364047540,1748976639723,-440.0,0.00017534,2]
[364047541,1748976639736,-440.0,0.00017534,2]
[364047542,1748976639746,-905.61,0.00017534,2]
[364047543,1748976639755,-589.62,0.00017534,2]
[364047544,1748976639765,-440.0,0.00017534,2]
[364047545,1748976639774,-440.0,0.00017534,2]
[364047547,1748976639783,-440.0,0.00017534,2]
[364047550,1748976639792,-440.0,0.00017534,2]
[364047552,1748976639801,-390.0,0.00017534,2]
[364047555,1748976639810,-440.0,0.00017534,2]
[364047558,1748976639820,-400.0,0.00017534,2]
[364047560,1748976639830,-380.0,0.00017534,2]
[364047563,1748976639840,-345.58,0.00017534,2]
[364047565,1748976639849,-440.0,0.00017534,2]
[364047566,1748976639860,-440.0,0.00017534,2]
[364047568,1748976639874,-440.0,0.00017534,2]
[364047571,1748976639885,-440.0,0.00017808,2]
[364047572,1748976639894,-440.0,0.00017808,2]
[364047574,1748976639903,-440.0,0.00017808,2]
[364047576,1748976639913,-440.0,0.00017808,2]
[364047589,1748976640027,-609.63,0.00017808,2]
[364047591,1748976640037,-440.0,0.00017808,2]
[364047594,1748976640047,-440.0,0.00017808,2]
[364047596,1748976640057,-557.46,0.00017808,2]
[364047598,1748976640068,-390.0,0.00017808,2]
[364047600,1748976640077,-488.96,0.00017808,2]
[364047602,1748976640087,-440.0,0.00017808,2]
[364047604,1748976640098,-379.88,0.00017808,2]
[364047606,1748976640109,-440.0,0.00017808,2]
[364047608,1748976640119,-440.0,0.00017808,2]
[364047610,1748976640129,-440.0,0.00017808,2]
[364047612,1748976640138,-440.0,0.00017808,2]
[364047614,1748976640147,-448.08,0.00017808,2]
[364047616,1748976640157,-440.0,0.00017808,2]
[364047618,1748976640167,-905.61,0.00017808,2]
[364047620,1748976640177,-440.0,0.00017808,2]
[364047622,1748976640187,-440.0,0.00017808,2]
[364047624,1748976640196,-440.0,0.00017808,2]
[364047626,1748976640205,-440.0,0.00017808,2]
[364047628,1748976640215,-440.0,0.00017808,2]
[364047630,1748976640224,-440.0,0.00017808,2]
[364047632,1748976640234,-440.0,0.00017808,2]
[364047634,1748976640243,-440.0,0.00017808,2]
[364047636,1748976640253,-420.0,0.00017961,2]
[364047638,1748976640266,-313.0,0.00017961,2]
[364047640,1748976640277,-420.0,0.00017961,2]
[364047642,1748976640286,-443.0,0.00018051,2]
[364047644,1748976640295,-390.0,0.00018082,2]
[364047646,1748976640304,-390.0,0.00018082,2]
[364047648,1748976640313,-440.0,0.00018082,2]
[364047650,1748976640323,-440.0,0.00018082,2]
[364047652,1748976640333,-609.63,0.00018082,2]
[364047654,1748976640342,-464.95,0.00018082,2]
[364047656,1748976640351,-440.0,0.00018082,2]
[364047658,1748976640361,-557.46,0.00018082,2]
[364047660,1748976640370,-440.0,0.00018082,2]
[364047662,1748976640379,-330.0,0.00018082,2]
[364047664,1748976640390,-390.0,0.00018082,2]
[364047666,1748976640400,-151.30171772,0.00018082,2]
[364047668,1748976640410,-440.0,0.00018082,2]
[364047670,1748976640420,-440.0,0.00018082,2]
[364047672,1748976640430,-905.61,0.00018082,2]
[364047674,1748976640445,-440.0,0.00018082,2]
[364047677,1748976640456,-236.15,0.00018082,2]
[364047679,1748976640465,-390.0,0.00018082,2]
[364047681,1748976640474,-440.0,0.00018082,2]
[364047683,1748976640486,-440.0,0.00018082,2]
[364047685,1748976640496,-440.0,0.00018082,2]
[364047687,1748976640506,-440.0,0.00018082,2]
[364047688,1748976640516,-390.0,0.00018082,2]
[364047691,1748976640527,-256.79469458,0.00018248,2]
[364047693,1748976640537,-151.0,0.00018248,2]
[364047695,1748976640547,-440.0,0.00018356,2]
[364047697,1748976640556,-440.0,0.00018356,2]
[364047699,1748976640566,-609.63,0.00018356,2]
[364047701,1748976640576,-440.0,0.00018356,2]
[364047703,1748976640586,-557.46,0.00018356,2]
[364047705,1748976640595,-440.0,0.00018356,2]
[364047707,1748976640605,-440.0,0.00018356,2]
[364047709,1748976640615,-300.66,0.00018356,2]
[364047711,1748976640624,-905.61,0.00018356,2]
[364047713,1748976640634,-440.0,0.00018356,2]
[364047715,1748976640644,-440.0,0.00018356,2]
[364047717,1748976640656,-279.56,0.00018356,2]
[364047719,1748976640665,-376.74,0.00018356,2]
[364047721,1748976640674,-440.0,0.00018356,2]
[364047723,1748976640684,-1524.72748603,0.00018384,2]
[364047725,1748976640694,-440.0,0.0001863,2]
[364047727,1748976640704,-440.0,0.0001863,2]
[364047729,1748976640714,-609.63,0.0001863,2]
[364047732,1748976640725,-567.47,0.0001863,2]
[364047734,1748976640735,-557.46,0.0001863,2]
[364047735,1748976640745,-440.0,0.0001863,2]
[364047737,1748976640754,-440.0,0.0001863,2]
[364047739,1748976640763,-905.61,0.0001863,2]
[364047741,1748976640774,-440.0,0.0001863,2]
[364047743,1748976640783,-440.0,0.0001863,2]
[364047745,1748976640792,-440.0,0.0001863,2]
[364047747,1748976640802,-182.15453462,0.00018903,2]
[364047749,1748976640812,-440.0,0.00018904,2]
[364047752,1748976640822,-337.29865587,0.00018904,2]
[364047754,1748976640832,-609.63,0.00018904,2]
[364047756,1748976640842,-557.46,0.00018904,2]
[364047758,1748976640851,-440.0,0.00018904,2]
[364047760,1748976640862,-440.0,0.00018904,2]
[364047762,1748976640871,-905.61,0.00018904,2]
[364047764,1748976640880,-440.0,0.00018904,2]
[364047766,1748976640890,-440.0,0.00018904,2]
[364047768,1748976640899,-440.0,0.00018904,2]
[364047770,1748976640909,-440.0,0.00019178,2]
[364047772,1748976640919,-609.63,0.00019178,2]
[364047774,1748976640928,-557.46,0.00019178,2]
[364047776,1748976640938,-440.0,0.00019178,2]
[364047778,1748976640948,-440.0,0.00019178,2]
[364047780,1748976640959,-905.61,0.00019178,2]
[364047782,1748976640968,-440.0,0.00019178,2]
[364047784,1748976640978,-440.0,0.00019178,2]
[364047786,1748976640988,-440.0,0.00019178,2]
[364047788,1748976640998,-440.0,0.00019452,2]
[364047790,1748976641008,-609.63,0.00019452,2]
[364047792,1748976641018,-557.46,0.00019452,2]
[364047794,1748976641028,-207.02971905,0.00019452,2]
[364047797,1748976641038,-440.0,0.00019452,2]
[364047799,1748976641048,-905.61,0.00019452,2]
[364047801,1748976641057,-440.0,0.00019452,2]
[364047803,1748976641067,-440.0,0.00019452,2]
[364047805,1748976641076,-440.0,0.00019452,2]
[364047807,1748976641085,-308.0,0.00019629,2]
[364047809,1748976641095,-587.0,0.00019629,2]
[364047811,1748976641104,-440.0,0.00019726,2]
[364047813,1748976641114,-609.63,0.00019726,2]
[364047815,1748976641123,-557.46,0.00019726,2]
[364047817,1748976641132,-462.5,0.00019726,2]
[364047819,1748976641141,-905.61,0.00019726,2]
[364047820,1748976641151,-440.0,0.00019726,2]
[364047822,1748976641160,-440.0,0.00019726,2]
[364047824,1748976641170,-440.0,0.00019726,2]
[364047826,1748976641179,-440.0,0.0002,2]
[364047829,1748976641189,-609.63,0.0002,2]
[364047831,1748976641199,-557.46,0.0002,2]
[364047833,1748976641209,-905.61,0.0002,2]
[364047835,1748976641219,-466.3,0.0002,2]
[364047837,1748976641229,-363.68,0.0002,2]
[364047839,1748976641238,-440.0,0.0002,2]
[364047841,1748976641247,-1524.72748603,0.00020156,2]
[364047843,1748976641256,-278.194698,0.00020187,2]
[364047845,1748976641266,-440.0,0.00020273,2]
[364047847,1748976641275,-609.63,0.00020273,2]
[364047849,1748976641284,-557.46,0.00020273,2]
[364047851,1748976641294,-905.61,0.00020273,2]
[364047853,1748976641304,-440.0,0.00020273,2]
[364047855,1748976641314,-412.3999775,0.00020547,2]
[364047857,1748976641324,-440.0,0.00020547,2]
[364047859,1748976641334,-609.63,0.00020547,2]
[364047861,1748976641343,-557.46,0.00020547,2]
[364047863,1748976641352,-905.61,0.00020547,2]
[364047865,1748976641361,-440.0,0.00020547,2]
[364047867,1748976641371,-1745.74,0.000206,2]
[364047869,1748976641381,-4122.77,0.000206,2]
[364047871,1748976641390,-440.0,0.00020821,2]
[364047873,1748976641399,-609.63,0.00020821,2]
[364047875,1748976641409,-557.46,0.00020821,2]
[364047877,1748976641418,-905.61,0.00020821,2]
[364047879,1748976641428,-440.0,0.00020821,2]
[364047881,1748976641441,-440.0,0.00021095,2]
[364047883,1748976641452,-609.63,0.00021095,2]
[364047885,1748976641462,-557.46,0.00021095,2]
[364047887,1748976641472,-905.61,0.00021095,2]
[364047889,1748976641483,-440.0,0.00021095,2]
[364047891,1748976641492,-432.68775712,0.00021366,2]
[364047893,1748976641502,-440.0,0.00021369,2]
[364047895,1748976641512,-609.63,0.00021369,2]
[364047897,1748976641525,-557.46,0.00021369,2]
[364047899,1748976641535,-905.61,0.00021369,2]
[364047901,1748976641544,-440.0,0.00021369,2]
[364047903,1748976641554,-207.4,0.00021641,2]
[364047905,1748976641564,-440.0,0.00021643,2]
[364047907,1748976641574,-609.63,0.00021643,2]
[364047909,1748976641584,-557.46,0.00021643,2]
[364047911,1748976641593,-905.61,0.00021643,2]
[364047913,1748976641602,-440.0,0.00021643,2]
[364047915,1748976641612,-29562.13012,0.00021899,2]
[364047917,1748976641622,-1745.74,0.000219,2]
[364047919,1748976641632,-4122.77,0.000219,2]
[364047921,1748976641641,-440.0,0.00021917,2]
[364047923,1748976641653,-609.63,0.00021917,2]
[364047925,1748976641663,-557.46,0.00021917,2]
[364047927,1748976641673,-905.61,0.00021917,2]
[364047929,1748976641683,-440.0,0.00021917,2]
[364047931,1748976641692,-1524.72748603,0.00021928,2]
[364047933,1748976641701,-188.0,0.00022,2]
[364047935,1748976641711,-40047.65122298,0.00022,7]
[364047947,1748976641816,-619.46867816,0.00022,7]
[364047992,1748976642246,-403.25091693,0.00016438,2]
[364047994,1748976642256,-440.0,0.00016438,2]
[364047996,1748976642266,-50000.0,0.00016438,2]
[364047998,1748976642275,-440.0,0.00016712,2]
[364048000,1748976642285,-540.92288429,0.00021917,2]
[364048002,1748976642294,-128027.64009886,0.00022,7]
[364048004,1748976642304,-1376.79,0.00022,2]
[364048006,1748976642313,-35140.79,0.00022,2]
[364048008,1748976642322,-171.0,0.00022,2]
[364048010,1748976642331,-250.0,0.00022,2]
[364048012,1748976642341,-252.62,0.00022191,2]
[364048014,1748976642351,-609.63,0.00022191,2]
[364048016,1748976642362,-557.46,0.00022191,2]
[364048018,1748976642371,-905.61,0.00022191,2]
[364048020,1748976642381,-440.0,0.00022191,2]
[364048022,1748976642390,-510.45975574,0.000224,5]
[364048024,1748976642401,-609.63,0.00022465,2]
[364048026,1748976642410,-557.46,0.00022465,2]
[364048028,1748976642419,-905.61,0.00022465,2]
[364048030,1748976642429,-310.97,0.00022465,2]
[364048032,1748976642444,-609.6971679,0.00022739,2]
[364048034,1748976642453,-557.53,0.00022739,2]
[364048036,1748976642462,-905.8,0.00022739,2]
[364048038,1748976642472,-159.79694846,0.00022877,2]
[364048040,1748976642481,-215.0738,0.0002301,2]
[364048042,1748976642490,-962.0,0.00023021,2]
[364048044,1748976642499,-709.0,0.00023021,2]
[364048046,1748976642510,-2225.0,0.00023021,2]
[364048048,1748976642520,-151.608,0.00023021,2]
[364048050,1748976642531,-196.698,0.00023021,2]
[364048052,1748976642541,-405.0,0.00023021,2]
[364048054,1748976642550,-338.337109,0.0002317,2]
[364048056,1748976642559,-159.79694846,0.00023178,2]
[364048058,1748976642568,-9886.87378159,0.000232,3]
[364048060,1748976642577,-1745.74,0.000232,7]
[364048062,1748976642587,-4122.77,0.000232,7]
[364048064,1748976642597,-2688.30929008,0.000233,2]
[364048066,1748976642606,-35140.79,0.000233,2]
[364048068,1748976642618,-159.79694846,0.00023479,2]
[364048070,1748976642628,-500.0,0.00023599,2]
[364048072,1748976642637,-242.09516654,0.00023599,2]
[364048074,1748976642647,-500.0,0.00023599,2]
[364048077,1748976642657,-500.0,0.00023599,2]
[364048079,1748976642666,-500.0,0.00023599,2]
[364048081,1748976642676,-500.0,0.00023599,2]
[364048083,1748976642686,-500.0,0.00023599,2]
[364048085,1748976642695,-500.0,0.00023599,2]
[364048087,1748976642705,-500.0,0.00023599,2]
[364048101,1748976642822,-2573.91371224,0.000236,7]
[364048103,1748976642832,-1524.72748603,0.000237,2]
[364048105,1748976642842,-482.96547436,0.00023708,2]
[364048107,1748976642851,-482.9654743,0.00023745,2]
[364048109,1748976642862,-427.53,0.00023762,8]
[364048111,1748976642872,-275.5,0.00023762,8]
[364048113,1748976642881,-423.63107087,0.00023777,2]
[364048115,1748976642891,-160.0,0.00023778,2]
[364048117,1748976642901,-229.42821335,0.00023778,2]
[364048120,1748976642911,-160.0,0.00023778,2]
[364048123,1748976642920,-482.9654743,0.00023783,2]
[364048125,1748976642929,-9122.96816705,0.00023794,7]
[364048127,1748976642939,-440.0,0.00023797,2]
[364048129,1748976642948,-440.0,0.00023797,2]
[364048131,1748976642957,-555.97,0.00023797,2]
[364048133,1748976642967,-440.0,0.00023797,2]
[364048135,1748976642976,-440.0,0.00023797,2]
[364048137,1748976642986,-440.0,0.00023797,2]
[364048139,1748976642995,-440.0,0.00023797,2]
[364048141,1748976643004,-430.0,0.00023797,2]
[364048143,1748976643014,-502.58,0.00023797,2]
[364048145,1748976643024,-475.91,0.00023797,2]
[364048147,1748976643034,-430.0,0.00023797,2]
[364048149,1748976643043,-440.0,0.00023797,2]
[364048151,1748976643052,-999.70008997,0.00023799,2]
[364048153,1748976643061,-1000.0,0.00023799,10]
[364048155,1748976643070,-1000.0,0.00023799,5]
[364048157,1748976643078,-1000.0,0.00023799,3]
[364048159,1748976643087,-797693.69672611,0.000238,2]
[364048181,1748976643280,-430.0,0.00016438,2]
[364048183,1748976643290,-440.0,0.00016438,2]
[364048185,1748976643299,-440.0,0.00016712,2]
[364048187,1748976643309,-440.0,0.00016986,2]
[364048189,1748976643318,-1380.52,0.00021889,10]
[364048191,1748976643328,-150.79,0.00023021,2]
[364048193,1748976643337,-58733.22455701,0.000238,2]
[364048478,1748976646353,-164.94476446,0.00016438,2]
[364048479,1748976646363,-420.0,0.0001726,2]
[364048480,1748976646374,-3154.00124769,0.000238,2]
[364048481,1748976646386,-4946.81751285,0.000238,2]
[364048482,1748976646398,-7477.89202386,0.000238,2]
[364048491,1748976646629,-0.33987555,0.000238,2]
[364053051,1748976709238,260.631957,0.00013699,2]
[364053058,1748976733972,-300.0,0.00016437,2]
[364053059,1748976733998,-590.09,0.00016438,2]
[364053060,1748976734018,-440.0,0.00016438,2]
[364053061,1748976734041,-430.0,0.00016438,2]
[364053062,1748976734064,-541.58129115,0.00016438,2]
[364053063,1748976734086,-321.46038597,0.00016438,2]
[364053064,1748976734108,-532.53,0.00016438,2]
[364053065,1748976734128,-330.0,0.00016438,2]
[364053066,1748976734149,-440.0,0.00016438,2]
[364053067,1748976734173,-440.0,0.00016438,2]
[364053068,1748976734195,-440.0,0.00016438,2]
[364053069,1748976734219,-505.22,0.00016438,2]
[364053070,1748976734240,-440.0,0.00016438,2]
[364053071,1748976734264,-440.0,0.00016438,2]
[364053072,1748976734286,-440.0,0.00016438,2]
[364053073,1748976734308,-440.0,0.00016438,2]
[364053074,1748976734332,-440.0,0.00016438,2]
[364053075,1748976734355,-440.0,0.00016438,2]
[364053076,1748976734379,-440.0,0.00016438,2]
[364053077,1748976734404,-430.0,0.00016438,2]
[364053078,1748976734428,-402.75093053,0.00016438,2]
[364053079,1748976734449,-430.0,0.00016438,2]
[364053080,1748976734473,-440.0,0.00016438,2]
[364053081,1748976734496,-440.0,0.00016438,2]
[364053082,1748976734519,-440.0,0.00016438,2]
[364053083,1748976734546,-440.0,0.00016438,2]
[364053084,1748976734570,-440.0,0.00016438,2]
[364053085,1748976734592,-440.0,0.00016438,2]
[364053086,1748976734616,-440.0,0.00016438,2]
[364053087,1748976734638,-483.0309688,0.00016438,2]
[364053088,1748976734660,-440.0,0.00016438,2]
[364053089,1748976734681,-172.33642355,0.00016438,2]
[364053090,1748976807683,-160.0,0.00016438,2]
[364053091,1748976807704,-16.0,0.00016438,2]
[364053104,1748977737814,256.831414,0.00013699,2]
[364053155,1748977832665,-300.0,0.00015621,2]
[364053156,1748977832675,-300.0,0.00015621,2]
[364053157,1748977832685,-300.0,0.00015621,2]
[364053158,1748977832694,-255.0,0.00015621,2]
[364053159,1748977832705,-10000.0,0.00015622,2]
[364053160,1748977832715,-15200.54984535,0.00015622,2]
[364053207,1748977840658,-610.40399336,0.00015622,2]
[364053229,1748977843357,-9089.04616129,0.00015622,2]
[364053230,1748977843368,-217.61323583,0.00016338,2]
[364053231,1748977843378,-1275.57239231,0.00016437,19]
[364053232,1748977843388,-367.0822292,0.00016438,2]
[364053233,1748977843398,-440.0,0.00016438,2]
[364053234,1748977843408,-440.0,0.00016438,2]
[364053235,1748977843417,-440.0,0.00016438,2]
[364053236,1748977843427,-440.0,0.00016438,2]
[364053237,1748977843437,-440.0,0.00016438,2]
[364053238,1748977843446,-440.0,0.00016438,2]
[364053239,1748977843456,-440.0,0.00016438,2]
[364053240,1748977843466,-440.0,0.00016438,2]
[364053241,1748977843475,-440.0,0.00016438,2]
[364053242,1748977843485,-440.0,0.00016438,2]
[364053243,1748977843495,-440.0,0.00016438,2]
[364053244,1748977843505,-195.83381847,0.00016438,2]
[364053245,1748977843515,-440.0,0.00016438,2]
[364053246,1748977843525,-241.66357645,0.00016438,2]
[364053247,1748977843534,-420.0,0.00016438,2]
[364053248,1748977843544,-430.0,0.00016438,2]
[364053249,1748977843554,-420.0,0.00016438,2]
[364053250,1748977843564,-476.38897664,0.00016438,2]
[364053251,1748977843574,-440.0,0.00016438,2]
[364053252,1748977843583,-420.0,0.00016438,2]
[364053253,1748977843594,-380.0,0.00016438,2]
[364053254,1748977843604,-430.0,0.00016438,2]
[364053255,1748977843614,-430.0,0.00016438,2]
[364053256,1748977843624,-440.0,0.00016438,2]
[364053257,1748977843633,-420.0,0.00016438,2]
[364053258,1748977843643,-430.0,0.00016438,2]
[364053259,1748977843653,-430.0,0.00016438,2]
[364053260,1748977843663,-420.0,0.00016438,2]
[364053261,1748977843672,-430.0,0.00016438,2]
[364053262,1748977843683,-440.0,0.00016438,2]
[364053263,1748977843692,-255.64708101,0.00016438,2]
[364053264,1748977843702,-430.0,0.00016438,2]
[364053265,1748977843712,-440.0,0.00016438,2]
[364053266,1748977843722,-440.0,0.00016438,2]
[364053267,1748977843886,-430.0,0.00016438,2]
[364053268,1748977843897,-440.0,0.00016438,2]
[364053269,1748977843908,-440.0,0.00016438,2]
[364053270,1748977843919,-430.0,0.00016438,2]
[364053271,1748977843929,-440.0,0.00016438,2]
[364053272,1748977843940,-430.0,0.00016438,2]
[364053273,1748977843951,-430.0,0.00016438,2]
[364053274,1748977843962,-430.0,0.00016438,2]
[364053275,1748977843973,-440.0,0.00016438,2]
[364053276,1748977843982,-562.84,0.00016438,2]
[364053277,1748977843993,-430.0,0.00016438,2]
[364053278,1748977844003,-440.0,0.00016438,2]
[364053279,1748977844013,-430.0,0.00016438,2]
[364053280,1748977844023,-430.0,0.00016438,2]
[364053281,1748977844032,-430.0,0.00016438,2]
[364053282,1748977844042,-584.6,0.00016438,2]
[364053283,1748977844052,-430.0,0.00016438,2]
[364053284,1748977844062,-430.0,0.00016438,2]
[364053285,1748977844072,-178.20299631,0.00016438,2]
[364053296,1748977846563,-261.79700369,0.00016438,2]
[364053297,1748977846574,-390.54592318,0.00016438,2]
[364053298,1748977860821,417.0,0.00021918,60]
[364053299,1748977867983,588.5,0.00024658,120]
[364053302,1748977993183,10000.0,0.0001552,2]
[364053310,1748978561545,824.89001809,0.000241,120]
[364053325,1748978729585,500.0,0.00024658,120]
[364053326,1748978748852,501.0,0.00024658,120]
[364053343,1748978861871,8548.9425713,0.00015506,2]
[364053348,1748978894355,11294.37975593,0.000125,2]
[364053352,1748978908335,280.52252723,0.0001,2]
[364053360,1748978917711,576.2125662,0.000149,2]
[364053372,1748978921502,12133.62451401,0.00015,2]
[364053375,1748978923572,14861.30900222,0.0001,2]
[364053377,1748978955953,5386.0850566,0.00015492,2]
[364053379,1748978968107,24900.0,0.00015506,2]
[364053385,1748979015620,253.272182,0.00013699,2]
[364053395,1748979032528,-1067.56713816,0.00015786,2]
[364053396,1748979032686,-431.94251277,0.00015786,2]
[364053427,1748979038583,-3500.49034907,0.00015786,2]
[364053430,1748979038600,-182.18760851,0.00015945,2]
[364053433,1748979038610,-386.35378357,0.00016,2]
[364053436,1748979038619,-204.2136669,0.00016074,2]
[364053440,1748979038630,-264.0,0.00016436,2]
[364053442,1748979038640,-300.0,0.00016437,2]
[364053445,1748979038649,-300.0,0.00016437,2]
[364053448,1748979038658,-8952.0245576,0.00016438,10]
[364053450,1748979038668,-380.0,0.00016438,2]
[364053452,1748979038677,-440.0,0.00016438,2]
[364053454,1748979038686,-440.0,0.00016438,2]
[364053456,1748979038696,-440.0,0.00016438,2]
[364053458,1748979038705,-430.0,0.00016438,2]
[364053460,1748979038715,-434.35808392,0.00016438,2]
[364053462,1748979038724,-11549.181364,0.00016438,2]
[364053464,1748979038733,-190.41158136,0.00016611,2]
[364053466,1748979038744,-440.0,0.00016711,2]
[364053469,1748979038753,-517.73729379,0.00016711,2]
[364053471,1748979038763,-440.0,0.00016711,2]
[364053472,1748979038772,-420.0,0.00016711,2]
[364053474,1748979038782,-420.0,0.00016711,2]
[364053476,1748979038791,-440.0,0.00016711,2]
[364053478,1748979038801,-430.0,0.00016711,2]
[364053480,1748979038810,-430.0,0.00016711,2]
[364053482,1748979038820,-430.0,0.00016711,2]
[364053485,1748979038831,-440.0,0.00016711,2]
[364053487,1748979038842,-390.0,0.00016711,2]
[364053489,1748979038851,-440.0,0.00016711,2]
[364053491,1748979038860,-565.5,0.00016711,2]
[364053493,1748979038870,-440.0,0.00016711,2]
[364053495,1748979038879,-440.0,0.00016711,2]
[364053497,1748979038888,-440.0,0.00016711,2]
[364053499,1748979038898,-502.58,0.00016711,2]
[364053501,1748979038908,-475.91,0.00016711,2]
[364053503,1748979038918,-430.0,0.00016711,2]
[364053505,1748979038927,-440.0,0.00016711,2]
[364053507,1748979038937,-440.0,0.00016712,2]
[364053509,1748979038947,-1047.90890823,0.000169,2]
[364053511,1748979038956,-999.70008997,0.00016984,2]
[364053513,1748979038965,-420.0,0.00016985,2]
[364053515,1748979038975,-440.0,0.00016985,2]
[364053517,1748979038984,-346.28674074,0.00016985,2]
[364053519,1748979038993,-440.0,0.00016985,2]
[364053521,1748979039003,-440.0,0.00016985,2]
[364053523,1748979039012,-565.5,0.00016985,2]
[364053525,1748979039022,-440.0,0.00016985,2]
[364053527,1748979039031,-440.0,0.00016985,2]
[364053529,1748979039041,-430.0,0.00016985,2]
[364053531,1748979039050,-502.58,0.00016985,2]
[364053532,1748979039059,-440.0,0.00016985,2]
[364053535,1748979039069,-440.0,0.00016986,2]
[364053536,1748979039079,-430.0,0.00017,2]
[364053538,1748979039089,-1047.90890817,0.00017176,2]
[364053540,1748979039098,-420.0,0.00017259,2]
[364053542,1748979039108,-400.0,0.00017259,2]
[364053544,1748979039117,-565.5,0.00017259,2]
[364053546,1748979039127,-440.0,0.00017259,2]
[364053548,1748979039137,-440.0,0.00017259,2]
[364053550,1748979039148,-502.58,0.00017259,2]
[364053553,1748979039158,-440.0,0.00017259,2]
[364053555,1748979039169,-440.0,0.0001726,2]
[364053557,1748979039179,-1047.90890817,0.00017452,2]
[364053559,1748979039189,-565.5,0.00017533,2]
[364053561,1748979039199,-390.0,0.00017533,2]
[364053562,1748979039208,-440.0,0.00017533,2]
[364053563,1748979039217,-502.58,0.00017533,2]
[364053564,1748979039227,-440.0,0.00017533,2]
[364053565,1748979039237,-440.0,0.00017534,2]
[364053566,1748979039249,-190.41158129,0.00017672,2]
[364053567,1748979039258,-1047.90890817,0.00017728,2]
[364053568,1748979039267,-565.5,0.00017807,2]
[364053569,1748979039276,-440.0,0.00017807,2]
[364053570,1748979039287,-502.58,0.00017807,2]
[364053571,1748979039296,-440.0,0.00017807,2]
[364053572,1748979039305,-440.0,0.00017808,2]
[364053573,1748979039314,-420.0,0.00017963,2]
[364053574,1748979039325,-1047.90890817,0.00018003,2]
[364053575,1748979039340,-565.5,0.00018081,2]
[364053576,1748979039350,-440.0,0.00018081,2]
[364053577,1748979039368,-502.58,0.00018081,2]
[364053578,1748979039379,-440.0,0.00018081,2]
[364053579,1748979039389,-440.0,0.00018082,2]
[364053580,1748979039399,-1047.90890817,0.00018279,2]
[364053581,1748979039417,-565.5,0.00018355,2]
[364053582,1748979039426,-440.0,0.00018355,2]
[364053583,1748979039435,-502.58,0.00018355,2]
[364053584,1748979039445,-440.0,0.00018355,2]
[364053585,1748979039454,-166.72,0.00018356,2]
[364053586,1748979039464,-229.42821335,0.00018433,2]
[364053587,1748979039473,-160.0,0.00018433,2]
[364053588,1748979039482,-423.63107087,0.00018433,2]
[364053589,1748979039492,-160.0,0.00018433,2]